Workbook

Sheet Growth Assumptions
A1: Business Growth Assumptions for Demo Company Ltd
A5: Annual Growth Assumptions | B5: Last 12 Months | C5: Forecast | F5: Comments | G5: Example
A7: Customer Acquisition | B7: =IF('Business Growth Model'!X8=0,"",IFERROR(('Business Growth Model'!Y6-'Business Growth Model'!X6)/'Business Growth Model'!X6,0)) -> -0.193877551 | C7: 0 | E7: =IF(B7>0,"increased by "&ROUND(B7*100,1)&"%","decreased by ("&ROUND(-B7*100,1)&"%)") -> decreased by (19.4%) | F7: =IFERROR("The number of new customers acquired has "&E7&" over the past year to "&ROUND('Business Growth Model'!Y6,0)&". The % entered in the forecast column will increase or decrease the current number of new customers by the % stated in each of the next 5 years.","There is insufficient data for us to generate a base position for you, please use the TY / Base column within the Growth Model to set this manually.") -> The number of new customers acquired has decreased by (19.4%) over the past year to 79. The % entered in the forecast column will increase or decrease the current number of new customers by the % stated in each of the next 5 years. | G7: If you currently acquire 10 new customers per annum and want to increase this by approximately 1 per annum, enter 10% in the forecast column.
A11: Customer Retention | B11: =IF('Business Growth Model'!X8=0,"",IFERROR('Business Growth Model'!Y27,"")) -> 0.5106382979 | C11: 0 | E11: =IF(B11>0,"increased by "&ROUND(B11*100,1)&"% points","decreased by ("&ROUND(-B11*100,1)&"%) points") -> increased by 51.1% points | F11: =IFERROR("The proportion of customers retained from the previous year was "&ROUND(B11*100,1)&"% over the past 12 months"&'Business Growth Model'!Q8&". The % entered in the forecast column will increase or decrease the % of customers retained from the previous year by the % points stated in each of the next 5 years.","There is insufficient data for us to generate a base position for you, please use the TY / Base column within the Growth Model to set this manually.") -> The proportion of customers retained from the previous year was 51.1% over the past 12 months, a (4.2%) point reduction on the previous 12 months. The % entered in the forecast column will increase or decrease the % of customers retained from the previous year by the % points stated in each of the next 5 years. | G11: If you currently retain 50% of the customers from one year to the next and want to increase this two 60% in 5 years, enter 2% in the forecast column.
A16: Average Transactions per Customer | B16: =IFERROR(('Business Growth Model'!Y14-'Business Growth Model'!X14)/'Business Growth Model'!X14,"") -> 0.05288577638 | C16: 0 | E16: =IF(B16>0,"increased by "&ROUND(B16*100,1)&"%","decreased by ("&ROUND(-B16*100,1)&"%)") -> increased by 5.3% | F16: =IFERROR("The number of transactions per customer has "&E16&" over the past year to "&ROUND('Business Growth Model'!Y30,1)&". The % entered in the forecast column will increase or decrease the number of transactions per customer by the % stated in each of the next 5 years.","There is insufficient data for us to generate a base position for you, please use the TY / Base column within the Growth Model to set this manually.") -> The number of transactions per customer has increased by 5.3% over the past year to 24.9. The % entered in the forecast column will increase or decrease the number of transactions per customer by the % stated in each of the next 5 years. | G16: If the average customer has 10 transaction per annum and you want to increase this by approximately 1 transaction, enter 10% in the forecast column.
A20: Average Transaction Value | B20: =IFERROR(('Business Growth Model'!Y15-'Business Growth Model'!X15)/'Business Growth Model'!X15,"") -> -0.05189793209 | C20: 0 | E20: =IF(B20>0,"increased by "&ROUND(B20*100,1)&"%","decreased by ("&ROUND(-B20*100,1)&"%)") -> decreased by (5.2%) | F20: =IFERROR("The average transaction value has "&E20&" over the past year to £"&ROUND('Business Growth Model'!Y31,0)&". The % entered in the forecast column will increase or decrease the average transaction value by the % stated in each of the next 5 years.","There is insufficient data for us to generate a base position for you, please use the TY / Base column within the Growth Model to set this manually.") -> The average transaction value has decreased by (5.2%) over the past year to £230. The % entered in the forecast column will increase or decrease the average transaction value by the % stated in each of the next 5 years. | G20: If you anticipate increasing prices by 5% per annum then enter 5% in the forecast column.
A24: Gross Margin % | B24: =IFERROR('Business Growth Model'!Y19-'Business Growth Model'!X19,"") -> 0.009901301471 | C24: 0 | E24: =IF(B24>0,"increased by "&ROUND(B24*100,1)&"% points","decreased by ("&ROUND(-B24*100,1)&"%) points") -> increased by 1% points | F24: =IFERROR("Gross margin % earned has "&E24&" over the past year to "&ROUND('Business Growth Model'!Y19*100,1)&"%. The % entered in the forecast column will increase or decrease the gross margin by the % points stated in each of the next 5 years.","There is insufficient data for us to generate a base position for you, please use the TY / Base column within the Growth Model to set this manually.") -> Gross margin % earned has increased by 1% points over the past year to 35%. The % entered in the forecast column will increase or decrease the gross margin by the % points stated in each of the next 5 years. | G24: If your current margin is 50% and you enter 1% in the forecast column, your gross margin will increase to 55% by year 5.
A28: Overheads Growth % | B28: =IFERROR('Business Growth Model'!Y34,"") -> -0.03704470799 | C28: 0 | E28: =IF(B28>0,"increased by "&ROUND(B28*100,1)&"%","decreased by ("&ROUND(-B28*100,1)&"%)") -> decreased by (3.7%) | F28: =IFERROR("Overheads have "&E28&" over the past year to £"&ROUND(-'Business Growth Model'!Y21/1000,1)&"k. The % entered in the forecast column will increase or decrease the overhead spend by the % stated in each of the next 5 years.","There is insufficient data for us to generate a base position for you, please use the TY / Base column within the Growth Model to set this manually.") -> Overheads have decreased by (3.7%) over the past year to £270.5k. The % entered in the forecast column will increase or decrease the overhead spend by the % stated in each of the next 5 years. | G28: If you are anticipating reducing overheads by 2% per annum, enter (2%) in the forecast column.

Sheet Business Growth Model
U1: TY | W1: Business Growth Opportunity for Demo Company Ltd
U2: Base
B4: Avg Cust Spend | H4: Customer retention
X5: LY | Y5: TY / Base | AA5: TY +1 | AB5: TY +2 | AC5: TY +3 | AD5: TY +4 | AE5: TY +5 | AG5: Impact on Company Valuation
D6: Rev | E6: No. | F6: Ave Value | I6: New | J6: Existing | K6: Lost | L6: Retained | W6: New Customers | X6: =I8 -> 98 | Y6: =I7 -> 79 | AA6: =Y6*(1+'Growth Assumptions'!$C$7) -> 79 | AB6: =AA6*(1+'Growth Assumptions'!$C$7) -> 79 | AC6: =AB6*(1+'Growth Assumptions'!$C$7) -> 79 | AD6: =AC6*(1+'Growth Assumptions'!$C$7) -> 79 | AE6: =AD6*(1+'Growth Assumptions'!$C$7) -> 79
B7: Avg Cust Spend TY | D7: 780302.0047 | E7: =I7+J7 -> 175 | F7: =D7/E7 -> 4458.868598 | H7: TY | I7: 79 | J7: 96 | P7: =IF(O8>0,"+"&ROUND(O8*100,1)&"% point",IF(O8<0,"("&ROUND(-O8*100,1)&"%) point","")) -> (4.2%) point | W7: Existing Customers | X7: =J8 -> 90 | Y7: =J7 -> 96 | AA7: =IFERROR(Y8*(AA27),"") -> 89.36170213 | AB7: =IFERROR(AA8*(AB27),"") -> 85.971933 | AC7: =IFERROR(AB8*(AC27),"") -> 84.24098706 | AD7: =IFERROR(AC8*(AD27),"") -> 83.35709978 | AE7: =IFERROR(AD8*(AE27),"") -> 82.90575308
B8: Avg Cust Spend LY | D8: 1002980.389 | E8: =I8+J8 -> 188 | F8: =D8/E8 -> 5335.002067 | H8: LY | I8: 98 | J8: 90 | K8: 92 | L8: 96 | M8: =(K8/SUM(K8:L8)) -> 0.4893617021 | N8: =L8/SUM(K8:L8) -> 0.5106382979 | O8: =N8-N9 -> -0.04150894139 | P8: =IF(O8<0,"reduction",IF(O8>0,"increase","")) -> reduction | Q8: =", a "&P7&" "&P8&" on the previous 12 months" -> , a (4.2%) point reduction on the previous 12 months | W8: Total Customers | X8: =SUM(X6:X7) -> 188 | Y8: =SUM(Y6:Y7) -> 175 | AA8: =SUM(AA6:AA7) -> 168.3617021 | AB8: =SUM(AB6:AB7) -> 164.971933 | AC8: =SUM(AC6:AC7) -> 163.2409871 | AD8: =SUM(AD6:AD7) -> 162.3570998 | AE8: =SUM(AE6:AE7) -> 161.9057531 | AG8: Net Profit Yr5 | AI8: =AE23 -> 53693.66122
B9: Movement | E9: =F9/F8 -> -0.1642236418 | F9: =F7-F8 -> -876.1334686 | H9: PY | K9: 73 | L9: 90 | M9: =(K9/SUM(K9:L9)) -> 0.4478527607 | N9: =L9/SUM(K9:L9) -> 0.5521472393
B10: Impact | F10: =F9*E8 -> -164713.0921 | W10: Retained Customers (from previous year) | X10: =IFERROR(L9,"") -> 90 | Y10: =L8 -> 96 | AA10: =AA7 -> 89.36170213 | AB10: =AB7 -> 85.971933 | AC10: =AC7 -> 84.24098706 | AD10: =AD7 -> 83.35709978 | AE10: =AE7 -> 82.90575308 | AG10: Add back
W11: Lost Customers (from previous year) | X11: =IFERROR(K9,"") -> 73 | Y11: =K8 -> 92 | AA11: =Y8*(1-AA27) -> 85.63829787 | AB11: =AA8*(1-AB27) -> 82.38976913 | AC11: =AB8*(1-AC27) -> 80.73094594 | AD11: =AC8*(1-AD27) -> 79.88388729 | AE11: =AD8*(1-AE27) -> 79.4513467 | AG11: Interest, Tax, Depreciation, Amortisation & Dividends | AI11: 29956.84666
I12: New | J12: Existing | K12: Lost | L12: Retained | O12: New | P12: Existing | Q12: Lost | R12: Retained | W12: Last Year's Customers | X12: =SUM(X10:X11) -> 163 | Y12: =SUM(Y10:Y11) -> 188 | AA12: =SUM(AA10:AA11) -> 175 | AB12: =SUM(AB10:AB11) -> 168.3617021 | AC12: =SUM(AC10:AC11) -> 164.971933 | AD12: =SUM(AD10:AD11) -> 163.2409871 | AE12: =SUM(AE10:AE11) -> 162.3570998
H13: TY | I13: 220916.3297 | J13: 780302.0047 | N13: TY | O13: =I13/I7 -> 2796.409237 | P13: =J13/J7 -> 8128.145882
H14: LY | I14: 218016.8181 | J14: 784963.5704 | K14: 224806.6668 | L14: 778173.7217 | N14: LY | O14: =I14/I8 -> 2224.661409 | P14: =J14/J8 -> 8721.817449 | Q14: =K14/K8 -> 2443.550727 | R14: =L14/L8 -> 8105.976267 | W14: No. Transactions | X14: 4141 | Y14: 4360 | AA14: =AA8*AA30 -> 4194.61155 | AB14: =AB8*AB30 -> 4110.157874 | AC14: =AC8*AC30 -> 4067.032592 | AD14: =AD8*AD30 -> 4045.011172 | AE14: =AE8*AE30 -> 4033.766191
H15: PY | K15: 209866.9692 | L15: 925686.6882 | N15: PY | Q15: =K15/K9 -> 2874.889989 | R15: =L15/L9 -> 10285.40765 | W15: Average Transaction Value | X15: =IFERROR(X16/X14,"") -> 242.2072902 | Y15: =IFERROR(Y16/Y14,"") -> 229.6372327 | AA15: =AA31 -> 229.6372327 | AB15: =AB31 -> 229.6372327 | AC15: =AC31 -> 229.6372327 | AD15: =AD31 -> 229.6372327 | AE15: =AE31 -> 229.6372327 | AG15: EBITDA | AI15: =AI8+AI11 -> 83650.50788
K16: =K14/F7 -> 50.41787214 | W16: Total Sales | X16: 1002980.389 | Y16: 1001218.334 | AA16: =AA14*AA15 -> 963238.9884 | AB16: =AB14*AB15 -> 943845.2799 | AC16: =AC14*AC15 -> 933942.1095 | AD16: =AD14*AD15 -> 928885.1715 | AE16: =AE14*AE15 -> 926302.9053
AG17: EBITDA Yr5 | AI17: =AI15 -> 83650.50788
H18: New opportunity? | L18: =IF(M18<L19,"Yes","No") -> Yes | M18: =(I7/I8)-1 -> -0.193877551 | O18: =IF((I13/I7)<(K14/K8),"lower","higher") -> higher | P18: =K14/(I13/I7) -> 80.3911902 | W18: Gross Margin | X18: =X16+X20 -> 341152.1152 | Y18: =Y16+Y20 -> 350466.1375 | AA18: =AA16*AA19 -> 337171.8597 | AB18: =AB16*AB19 -> 330383.2923 | AC18: =AC16*AC19 -> 326916.7898 | AD18: =AD16*AD19 -> 325146.6609 | AE18: =AE16*AE19 -> 324242.7653 | AG18: EBITDA TY | AI18: =Y23+AI11 -> 109873.8801
H19: Benchmark | L19: 0 | O19: =I7-P18 -> -1.391190198 | P19: =I13-K14 -> -3890.33712 | W19: Gross Margin % | X19: =IFERROR(X18/X16,"") -> 0.3401383707 | Y19: =IFERROR(Y18/Y16,"") -> 0.3500396722 | AA19: =AA33 -> 0.3500396722 | AB19: =AB33 -> 0.3500396722 | AC19: =AC33 -> 0.3500396722 | AD19: =AD33 -> 0.3500396722 | AE19: =AE33 -> 0.3500396722 | AG19: Movement | AI19: =AI17-AI18 -> -26223.37224
H20: Retained opportunity? | L20: =IF(L8>L9,"No","Yes") -> No | X20: -661828.2733 | Y20: -650752.1968
H21: Benchmark | L21: -0.1 | W21: Overheads | X21: -280957.0769 | Y21: -270549.1041 | AA21: =Y21*(1+AA34) -> -270549.1041 | AB21: =AA21*(1+AB34) -> -270549.1041 | AC21: =AB21*(1+AC34) -> -270549.1041 | AD21: =AC21*(1+AD34) -> -270549.1041 | AE21: =AD21*(1+AE34) -> -270549.1041 | AG21: Impact on business valuation
H22: Lost opportunity? | L22: =IF(K8/SUM(K8:L8)>K9/SUM(K9:L9),"Yes","No") -> Yes | M22: =K8/SUM(K8:L8) -> 0.4893617021 | AG22: 1 x Multiple | AI22: =VALUE(LEFT(AG22,2))*$AI$19 -> -26223.37224
W23: Net Profit | X23: =X18+X21 -> 60195.03825 | Y23: =Y18+Y21 -> 79917.03347 | AA23: =AA18+AA21 -> 66622.75567 | AB23: =AB18+AB21 -> 59834.18828 | AC23: =AC18+AC21 -> 56367.68578 | AD23: =AD18+AD21 -> 54597.55685 | AE23: =AE18+AE21 -> 53693.66122 | AG23: 2 x Multiple | AI23: -52446.74449
H24: Change to look at new vs lost and average spend new vs lost | W24: Net Profit % | X24: =IFERROR(X23/X16,"") -> 0.06001616676 | Y24: =IFERROR(Y23/Y16,"") -> 0.07981978628 | AA24: =IFERROR(AA23/AA16,"") -> 0.06916534367 | AB24: =IFERROR(AB23/AB16,"") -> 0.06339406421 | AC24: =IFERROR(AC23/AC16,"") -> 0.06035458216 | AD24: =IFERROR(AD23/AD16,"") -> 0.05877750935 | AE24: =IFERROR(AE23/AE16,"") -> 0.05796555416 | AG24: 3 x Multiple | AI24: -78670.11673
AG25: 4 x Multiple | AI25: -104893.489
W26: New Customer Growth | Y26: =IFERROR((Y6/X6)-1,"") -> -0.193877551 | AA26: =(AA6/Y6)-1 -> 0 | AB26: =(AB6/AA6)-1 -> 0 | AC26: =(AC6/AB6)-1 -> 0 | AD26: =(AD6/AC6)-1 -> 0 | AE26: =(AE6/AD6)-1 -> 0 | AG26: 5 x Multiple | AI26: -131116.8612
W27: Retained Customer Assumptions | X27: =IFERROR(1-(X11/X12),0) -> 0.5521472393 | Y27: =IFERROR(1-(Y11/Y12),0) -> 0.5106382979 | AA27: =Y27+'Growth Assumptions'!C11 -> 0.5106382979 | AB27: =AA27+'Growth Assumptions'!$C$11 -> 0.5106382979 | AC27: =AB27+'Growth Assumptions'!$C$11 -> 0.5106382979 | AD27: =AC27+'Growth Assumptions'!$C$11 -> 0.5106382979 | AE27: =AD27+'Growth Assumptions'!$C$11 -> 0.5106382979 | AG27: 10 x Multiple | AI27: -262233.7224
W28: Retained Customer % Movement | Y28: =Y27-X27 -> -0.04150894139 | AA28: =AA27-Y27 -> 0 | AB28: =AB27-AA27 -> 0 | AC28: =AC27-AB27 -> 0 | AD28: =AD27-AC27 -> 0 | AE28: =AE27-AD27 -> 0
W30: Average Transactions per Customer | X30: =IFERROR(X14/X8,"") -> 22.02659574 | Y30: =IFERROR(Y14/Y8,0) -> 24.91428571 | AA30: =Y30*(1+'Growth Assumptions'!$C$16) -> 24.91428571 | AB30: =AA30*(1+'Growth Assumptions'!$C$16) -> 24.91428571 | AC30: =AB30*(1+'Growth Assumptions'!$C$16) -> 24.91428571 | AD30: =AC30*(1+'Growth Assumptions'!$C$16) -> 24.91428571 | AE30: =AD30*(1+'Growth Assumptions'!$C$16) -> 24.91428571 | AG30: Note: Valuation multiplier depends on various factors including the industry sector, timing and the structure and strategic positioning of the business being sold.
W31: Average Transaction Value | X31: =X15 -> 242.2072902 | Y31: =Y15 -> 229.6372327 | AA31: =Y31*(1+'Growth Assumptions'!$C$20) -> 229.6372327 | AB31: =AA31*(1+'Growth Assumptions'!$C$20) -> 229.6372327 | AC31: =AB31*(1+'Growth Assumptions'!$C$20) -> 229.6372327 | AD31: =AC31*(1+'Growth Assumptions'!$C$20) -> 229.6372327 | AE31: =AD31*(1+'Growth Assumptions'!$C$20) -> 229.6372327
W33: Gross Margin % | X33: =X19 -> 0.3401383707 | Y33: =Y19 -> 0.3500396722 | AA33: =Y33+'Growth Assumptions'!$C$24 -> 0.3500396722 | AB33: =AA33+'Growth Assumptions'!$C$24 -> 0.3500396722 | AC33: =AB33+'Growth Assumptions'!$C$24 -> 0.3500396722 | AD33: =AC33+'Growth Assumptions'!$C$24 -> 0.3500396722 | AE33: =AD33+'Growth Assumptions'!$C$24 -> 0.3500396722
W34: Overheads Growth % | Y34: =IFERROR((Y21/X21)-1,"") -> -0.03704470799 | AA34: ='Growth Assumptions'!$C$28 -> 0 | AB34: ='Growth Assumptions'!$C$28 -> 0 | AC34: ='Growth Assumptions'!$C$28 -> 0 | AD34: ='Growth Assumptions'!$C$28 -> 0 | AE34: ='Growth Assumptions'!$C$28 -> 0
X166: =X5 -> LY | Y166: =Y5 -> TY / Base | Z166: =AA5 -> TY +1 | AA166: =AB5 -> TY +2 | AB166: =AC5 -> TY +3 | AC166: =AD5 -> TY +4 | AD166: =AE5 -> TY +5
W167: Sales | X167: =X16 -> 1002980.389 | Y167: =Y16 -> 1001218.334 | Z167: =AA16 -> 963238.9884 | AA167: =AB16 -> 943845.2799 | AB167: =AC16 -> 933942.1095 | AC167: =AD16 -> 928885.1715 | AD167: =AE16 -> 926302.9053
W168: Customers | X168: =X8 -> 188 | Y168: =Y8 -> 175 | Z168: =AA8 -> 168.3617021 | AA168: =AB8 -> 164.971933 | AB168: =AC8 -> 163.2409871 | AC168: =AD8 -> 162.3570998 | AD168: =AE8 -> 161.9057531
W169: Gross Margin | X169: =X18 -> 341152.1152 | Y169: =Y18 -> 350466.1375 | Z169: =AA18 -> 337171.8597 | AA169: 330383.2923 | AB169: 326916.7898 | AC169: 325146.6609 | AD169: 324242.7653
W170: Gross Margin % | X170: =X19 -> 0.3401383707 | Y170: =Y19 -> 0.3500396722 | Z170: 0.3500396722 | AA170: 0.3500396722 | AB170: 0.3500396722 | AC170: 0.3500396722 | AD170: 0.3500396722
W171: Overheads | X171: =-X21 -> 280957.0769 | Y171: =-Y21 -> 270549.1041 | Z171: =-AA21 -> 270549.1041 | AA171: =-AB21 -> 270549.1041 | AB171: =-AC21 -> 270549.1041 | AC171: =-AD21 -> 270549.1041 | AD171: =-AE21 -> 270549.1041
W172: Overheads % | X172: =X171/X167 -> 0.2801222039 | Y172: 0.2702198859 | Z172: 0.2808743285 | AA172: 0.2866456079 | AB172: 0.28968509 | AC172: 0.2912621628 | AD172: 0.292074118
W173: Net Profit | X173: =X23 -> 60195.03825 | Y173: =Y23 -> 79917.03347 | Z173: =AA23 -> 66622.75567 | AA173: 59834.18828 | AB173: 56367.68578 | AC173: 54597.55685 | AD173: 53693.66122
W174: Net Profit % | X174: =X24 -> 0.06001616676 | Y174: =Y24 -> 0.07981978628 | Z174: 0.06916534367 | AA174: 0.06339406421 | AB174: 0.06035458216 | AC174: 0.05877750935 | AD174: 0.05796555416
